bitfinex-derivatives/quotes_ETHF0:USTF0_20260310
["timestamp","ask_amount","ask_price","bid_price","bid_amount"]
[1773172508686,0.54813601,2037.0,2035.6,0.56854713]
[1773172509083,0.54813601,2037.0,2035.6,0.5742131]
[1773172509792,0.54813601,2037.0,2035.8,0.56854713]
[1773172510194,0.54813601,2036.6,2035.6,0.5742131]
[1773172510394,0.54813601,2036.4,2035.6,0.5742131]
[1773172510693,6.434,2036.7,2035.0,0.56854713]
[1773172510694,0.54813601,2036.2,2035.0,0.56854713]
[1773172511690,0.55264485,2036.2,2035.0,0.57420539]
[1773172511891,0.54813601,2036.0,2035.0,0.57420539]
[1773172512196,0.54813601,2035.8,2035.0,0.57420539]
[1773172514197,0.54813601,2035.8,2035.0,0.00565826]
[1773172514401,0.54813601,2035.6,2034.8,0.56854713]
[1773172515393,0.54813601,2035.6,2034.8,0.57442418]
[1773172516599,0.54813601,2035.8,2034.8,0.57442418]
[1773172518495,0.54813601,2035.9,2034.8,0.57442418]
[1773172521199,0.57218946,2035.8,2034.8,0.57442418]
[1773172521595,0.57218946,2035.6,2034.8,0.00587705]
[1773172521793,0.57218946,2035.4,2034.8,0.00587705]
[1773172521994,12.47499,2036.0,2034.8,0.59084661]
[1773172521995,0.57218946,2035.9,2034.8,0.59084661]
[1773172526299,0.5766983,2036.2,2035.1,0.58496956]
[1773172526501,0.5766983,2036.2,2035.4,0.58496956]
[1773172529004,0.5766983,2036.2,2035.2,0.58496956]
[1773172529602,0.00450884,2036.2,2035.2,0.58496956]
[1773172529801,0.57218946,2036.6,2035.6,0.58496956]
[1773172530003,0.57218946,2036.8,2035.7,0.58496956]
[1773172530403,10.12481275,2037.6,2035.7,0.58496956]
[1773172530404,0.57218946,2037.2,2036.0,0.58496956]
[1773172530904,0.57708704,2037.2,2036.0,0.58496956]
[1773172531209,0.00489758,2037.2,2036.2,3.48106893]
[1773172531405,0.00489758,2037.2,2036.3,0.58496956]
[1773172531603,0.00489758,2037.2,2036.3,0.59126402]
[1773172532703,0.00489758,2037.2,2036.5,0.58496956]
[1773172533503,0.57708704,2037.2,2036.5,0.58496956]
[1773172534604,0.00489758,2037.2,2036.5,0.58496956]
[1773172536011,0.57708704,2037.2,2036.5,0.58496956]
[1773172537611,0.57708704,2037.2,2036.3,0.00629446]
[1773172537811,0.57708704,2037.2,2036.4,0.58496956]
[1773172538012,0.57218946,2037.1,2036.4,0.58496956]
[1773172538909,0.57708704,2037.2,2036.4,0.58496956]
[1773172542417,0.57708704,2037.2,2036.4,0.59072619]
[1773172544117,0.57218946,2037.0,2036.4,0.00575663]
[1773172545721,0.57218946,2037.0,2036.1,0.58496956]
[1773172546420,0.57218946,2036.8,2036.1,0.58496956]
[1773172546817,0.57218946,2036.8,2036.1,0.59005258]
[1773172547222,0.54513664,2036.6,2036.1,0.00508302]
[1773172549221,0.54513664,2036.6,2036.1,0.5851058]
[1773172549418,0.56633737,2036.8,2036.1,0.5851058]
[1773172555521,0.56633737,2037.0,2036.1,0.5851058]
[1773172562233,0.56633737,2037.0,2036.1,0.00508302]
[1773172562428,2.89609937,2037.1,2036.1,0.00508302]
[1773172562429,0.56633737,2036.8,2036.1,0.00508302]
[1773172562630,0.56633737,2036.7,2036.1,0.00508302]
[1773172564331,0.56633737,2036.7,2036.2,0.59884069]
[1773172566336,0.56633737,2036.7,2036.1,0.00508302]
[1773172567436,0.56633737,2036.7,2035.7,0.59884069]
[1773172567837,0.56633737,2036.6,2035.7,0.59884069]
[1773172568437,0.56633737,2036.6,2035.7,0.60403299]
[1773172572747,0.56633737,2036.4,2035.7,0.0051923]
[1773172573244,0.56633737,2036.4,2035.7,0.60403299]
[1773172579045,0.56633737,2036.4,2035.7,0.0051923]
[1773172579249,0.56633737,2036.2,2035.3,0.59884069]
[1773172579452,0.57765743,2036.0,2035.3,0.59884069]
[1773172580147,0.57765743,2036.0,2035.3,0.60509318]
[1773172580552,0.57765743,2036.0,2035.3,0.58955794]
[1773172605270,0.57765743,2035.8,2035.3,0.00625249]
[1773172605672,0.57765743,2035.8,2035.3,0.58955794]
[1773172609674,0.57932891,2036.2,2035.3,0.58955794]
[1773172609970,0.57932891,2036.0,2035.3,0.58955794]
[1773172614580,0.57932891,2036.2,2035.3,0.58955794]
[1773172620782,0.57932891,2036.1,2035.3,0.58955794]
[1773172620989,0.57932891,2035.9,2035.3,0.00625249]
[1773172621586,0.57932891,2035.7,2035.3,0.00625249]
[1773172621889,0.57932891,2035.5,2034.7,0.58503949]
[1773172622088,0.57932891,2035.3,2034.2,0.58503949]
[1773172622789,0.57932891,2035.3,2034.2,0.58880103]
[1773172623392,0.57932891,2035.1,2034.2,0.58880103]
[1773172624294,0.24566,2035.2,2034.2,0.58880103]
[1773172624295,0.57932891,2035.2,2034.2,0.58880103]
[1773172639505,0.55343842,2035.0,2034.2,0.58880103]
[1773172642000,0.55343842,2034.6,2033.9,0.57331102]
[1773172642205,0.55343842,2034.6,2033.8,0.57331102]
[1773172642707,0.55343842,2034.9,2033.8,0.57331102]
[1773172643106,0.55343842,2034.9,2033.8,0.57862935]
[1773172644305,0.55343842,2034.9,2033.9,0.57331102]
[1773172646202,0.55343842,2035.5,2034.5,0.57331102]
[1773172651011,0.00350523,2035.7,2035.1,0.57331102]
[1773172651216,0.55343842,2036.0,2035.2,0.57331102]
[1773172652215,0.55936068,2036.0,2035.2,0.57331102]
[1773172657610,0.00592226,2036.0,2035.2,0.57331102]
[1773172660217,0.55936068,2036.0,2035.2,0.57331102]
[1773172662525,0.55936068,2036.0,2035.3,0.57331102]
[1773172662822,0.55936068,2036.0,2035.3,0.5778962]
[1773172664915,0.55343842,2036.2,2035.4,0.57331102]
[1773172665625,0.55343842,2036.2,2035.6,0.57331102]
[1773172666019,0.55343842,2036.1,2035.4,2.50282612]
[1773172667414,0.55343842,2036.1,2035.4,0.57331102]
[1773172671128,0.55695524,2035.9,2035.4,0.57331102]
[1773172673826,0.55695524,2035.7,2035.0,0.60112894]
[1773172674131,0.55695524,2035.6,2035.1,0.60112894]
[1773172674331,0.55695524,2035.9,2035.1,0.60112894]
[1773172675132,0.55695524,2035.9,2035.1,0.60604118]
[1773172675432,0.55695524,2035.9,2035.3,0.60112894]
[1773172676225,0.55695524,2035.7,2035.1,0.60604118]
[1773172678227,0.55695524,2035.7,2035.1,0.00491224]
[1773172678529,0.55695524,2035.7,2035.1,0.43147194]
[1773172679323,0.55695524,2035.7,2035.1,0.43735034]
[1773172680427,0.55695524,2036.0,2035.1,3.33306458]
[1773172680730,0.55695524,2036.1,2035.3,0.60112894]
[1773172680932,0.56127046,2036.2,2035.4,0.60112894]
[1773172681932,0.00431522,2036.2,2035.5,0.60112894]
[1773172683335,0.55695524,2036.8,2035.8,0.60112894]
[1773172683635,0.55695524,2036.8,2036.0,0.60112894]
[1773172683832,0.55695524,2036.9,2036.1,0.60112894]
[1773172684037,0.55695524,2037.3,2036.1,0.60112894]
[1773172684235,0.56072233,2037.3,2036.1,0.60112894]
[1773172685237,0.55695524,2037.0,2035.9,0.60112894]
[1773172685534,0.55695524,2037.0,2036.0,0.60112894]
[1773172686938,0.55695524,2036.8,2035.9,7.03612894]
[1773172687135,0.55695524,2036.8,2036.0,0.60112894]
[1773172688835,0.55695524,2036.8,2035.9,7.03612894]
[1773172689234,0.55695524,2036.6,2035.5,0.60112894]
[1773172690943,0.55695524,2036.4,2035.5,0.60112894]
[1773172697040,0.55695524,2036.2,2035.3,0.60112894]
[1773172697246,0.55695524,2036.3,2035.4,0.60112894]
[1773172711649,0.55695524,2036.3,2035.5,0.54441196]
[1773172719160,0.59851053,2036.6,2035.9,0.54441196]
[1773172719555,0.59851053,2036.6,2035.8,0.54441196]
[1773172722057,0.59851053,2036.4,2035.5,0.54441196]
[1773172722455,0.59851053,2036.4,2035.6,0.54441196]
[1773172730860,0.59851053,2036.4,2035.7,0.55731211]
[1773172731364,0.59851053,2036.4,2035.8,0.55731211]
[1773172736163,0.59851053,2036.4,2035.6,0.55731211]
[1773172738365,0.59851053,2036.4,2035.7,0.55731211]
[1773172738560,0.57511331,2036.6,2036.0,0.55731211]
[1773172738767,0.57511331,2036.8,2036.1,0.55731211]
[1773172738957,0.57511331,2037.2,2036.3,0.55731211]
[1773172739562,0.5788804,2037.3,2036.8,0.55731211]
[1773172739767,0.5788804,2037.3,2036.8,0.5621357]
[1773172739966,0.5788804,2037.3,2036.8,0.00482359]
[1773172740366,0.5788804,2037.3,2036.8,0.5621357]
[1773172740562,0.57511331,2037.5,2036.8,0.5621357]
[1773172741766,0.57930132,2037.5,2036.8,0.5621357]
[1773172742168,0.57930132,2037.5,2036.8,0.00482359]
[1773172742467,0.57930132,2037.5,2036.4,6.99031211]
[1773172742468,0.57511331,2037.4,2036.4,6.99031211]
[1773172742767,0.57511331,2037.4,2036.5,0.55731211]
[1773172743367,0.57511331,2037.4,2036.5,0.56147782]
[1773172745273,0.57511331,2037.2,2036.5,0.00416571]
[1773172745568,0.57511331,2037.2,2036.3,0.55731211]
[1773172746670,0.57511331,2037.2,2036.3,0.56364201]
[1773172753276,0.57511331,2037.2,2036.4,0.55731211]
[1773172754674,0.57511331,2037.2,2036.3,0.2518499]
[1773172754675,0.57511331,2037.2,2036.6,0.55731211]
[1773172755380,0.57511331,2037.4,2036.6,0.55731211]
[1773172757471,0.57511331,2037.4,2036.5,0.55731211]
[1773172758272,0.24957801,2037.5,2036.4,0.55731211]
[1773172758273,0.57511331,2037.2,2036.4,0.55731211]
[1773172760281,0.57511331,2037.2,2036.3,0.0063299]
[1773172760282,0.59037216,2037.1,2036.3,0.55390358]
[1773172761383,0.59037216,2036.9,2036.3,0.0063299]
[1773172761878,0.59037216,2036.9,2036.3,0.55390358]
[1773172762278,0.59037216,2036.9,2036.3,0.0063299]
[1773172763983,0.59037216,2036.9,2036.3,0.55390358]
[1773172765083,0.59037216,2036.9,2036.3,0.0063299]
[1773172766283,0.59037216,2036.9,2036.3,0.55390358]
[1773172766683,0.59037216,2036.9,2036.3,0.0063299]
[1773172766878,0.59037216,2036.9,2036.0,0.54757368]
[1773172767884,0.59037216,2036.9,2036.0,0.55171535]
[1773172771288,0.24543,2037.2,2036.1,0.54757368]
[1773172771483,0.59037216,2037.1,2036.2,0.54757368]
[1773172775191,0.59037216,2037.1,2036.3,0.54757368]
[1773172779493,0.59037216,2037.4,2036.4,0.54757368]
[1773172779794,0.59037216,2037.4,2036.5,0.54757368]
[1773172780190,0.59037216,2037.3,2036.5,6.97957368]
[1773172780385,0.59037216,2037.3,2036.4,0.54757368]
[1773172781995,0.59037216,2037.1,2036.2,0.54757368]
[1773172783599,0.59037216,2037.1,2036.4,0.54757368]
[1773172785599,0.59037216,2037.1,2036.6,0.54757368]
[1773172787494,0.59037216,2037.1,2036.5,1.92766013]
[1773172787495,0.59619636,2037.4,2037.0,0.56877812]
[1773172787696,0.59619636,2037.4,2037.1,2.49643825]
[1773172788002,0.60038437,2037.5,2037.2,0.56877812]
[1773172788404,0.55398843,2037.9,2037.2,0.56877812]
[1773172788700,0.55398843,2037.9,2037.4,2.49643825]
[1773172789100,0.55398843,2037.9,2037.4,0.56877812]
[1773172789301,0.55894667,2037.9,2037.4,0.56877812]
[1773172789701,0.55541681,2038.4,2037.7,0.555014]
[1773172789901,0.55541681,2038.4,2037.4,0.555014]
[1773172790499,0.55541681,2038.2,2036.8,10.25377163]
[1773172790703,0.55993897,2038.2,2037.0,0.555014]
[1773172793201,0.55531984,2038.0,2037.0,0.555014]
[1773172794404,0.55531984,2038.0,2036.8,6.43489689]
[1773172794405,0.57025854,2037.8,2036.8,0.55891089]
[1773172795400,0.56636165,2037.6,2036.5,0.555014]
[1773172796299,0.56750682,2037.0,2036.5,0.5599202]
[1773172796605,0.56750682,2037.0,2036.1,0.555014]
[1773172797411,4.35060425,2037.7,2036.1,0.55960264]
[1773172797412,0.56750682,2037.6,2036.1,0.55960264]
[1773172797598,0.24536,2037.7,2036.1,0.55960264]
[1773172797599,0.56323777,2037.4,2036.1,0.55960264]
[1773172798109,0.56323777,2037.4,2036.2,0.555014]
[1773172798302,0.56323777,2037.2,2036.2,0.555014]
[1773172799300,0.56323777,2037.5,2036.4,2.88927468]
[1773172799497,0.56323777,2037.5,2036.5,0.555014]
[1773172799702,0.5594785,2037.3,2036.2,0.555014]
[1773172799899,0.5594785,2037.1,2036.2,0.555014]
[1773172800400,0.5594785,2037.1,2035.5,2.88927468]
[1773172800401,4.35072425,2036.7,2035.5,0.60187146]
[1773172800600,0.2455,2036.5,2035.5,16.97916375]
[1773172800802,0.24556,2036.1,2034.9,0.60187146]
[1773172800999,4.10161334,2036.3,2034.8,0.60187146]
[1773172801206,6.431,2036.1,2034.8,0.60187146]
[1773172801401,0.00524403,2036.3,2035.2,0.61302388]
[1773172801606,0.00524403,2036.3,2035.4,0.61302388]
[1773172802108,0.00524403,2036.3,2035.6,0.61302388]
[1773172802599,0.00524403,2036.3,2035.7,16.35762555]
[1773172802797,0.00524403,2036.3,2035.4,0.61302388]
[1773172803508,0.01226378,2036.2,2035.5,0.59573957]
[1773172804004,0.01226378,2036.2,2035.5,4.81740501]
[1773172804204,0.01226378,2036.2,2035.6,0.59573957]
[1773172805309,0.01226378,2036.2,2035.7,15.74460167]
[1773172805812,0.01226378,2036.2,2035.7,16.33076307]
[1773172806310,0.00524403,2036.3,2035.8,0.5861614]
[1773172806805,0.03666416,2036.3,2035.9,15.74460167]
[1773172807213,0.03666416,2036.3,2035.9,16.33076307]
[1773172807904,0.03666416,2036.3,2035.9,15.74460167]
[1773172808105,0.03666416,2036.3,2035.9,15.75307142]
[1773172808310,0.03666416,2036.3,2035.7,0.58597762]
[1773172809107,0.00524403,2036.3,2035.7,0.58597762]
[1773172809307,3.13472468,2037.0,2035.9,0.58597762]
[1773172809308,0.03178768,2036.7,2035.9,0.58597762]
[1773172809609,6.46478768,2036.7,2035.9,0.58597762]
[1773172810206,0.03102134,2036.6,2035.9,0.58597762]
[1773172810412,0.03596626,2036.6,2036.0,15.1670938]
[1773172810907,6.46896626,2036.6,2036.1,0.58636079]
[1773172811108,0.03102134,2037.0,2036.2,0.58636079]
[1773172811406,0.03102134,2037.0,2036.3,0.58636079]
[1773172811713,6.4435189,2037.2,2036.4,0.59661201]
[1773172811904,6.4435189,2037.2,2036.5,0.59661201]
[1773172812110,0.0105189,2037.2,2036.5,0.59661201]
[1773172812409,6.433,2037.1,2036.5,0.60173708]
[1773172812606,0.00497538,2037.2,2036.7,0.59661201]
[1773172812805,6.6888989,2037.6,2036.7,0.59661201]
[1773172813006,6.6888989,2037.6,2036.9,0.59661201]
[1773172813515,0.05328921,2037.5,2036.9,0.59661201]
[1773172813714,0.05905841,2037.5,2036.9,0.59661201]
[1773172814215,0.05905841,2037.5,2037.0,15.11380459]
[1773172814515,0.05905841,2037.5,2036.7,15.68903145]
[1773172814714,0.05905841,2037.5,2036.8,0.60187146]
[1773172815912,0.0057692,2037.5,2036.8,0.60187146]
[1773172816119,6.433,2037.6,2037.0,0.60079245]
[1773172816516,6.433,2037.6,2037.0,4.82245789]
[1773172816716,6.433,2037.6,2037.1,0.60079245]
[1773172817115,6.43876102,2037.6,2037.1,0.60079245]
[1773172817620,6.43876102,2037.6,2037.1,4.82245789]
[1773172817821,6.43876102,2037.6,2036.9,0.59965031]
[1773172817822,0.0044423,2037.5,2036.9,0.59965031]
[1773172818016,0.0044423,2037.5,2036.7,15.30739552]
[1773172818216,0.0044423,2037.5,2036.7,14.70774521]
[1773172818416,0.0044423,2037.5,2036.8,0.59965031]
[1773172818617,6.4364423,2037.4,2036.8,0.59965031]
[1773172818915,0.0044423,2037.3,2036.9,14.19089521]
[1773172819113,0.0044423,2037.3,2036.9,13.64310936]
[1773172819711,0.00280384,2037.1,2036.5,0.60561397]
[1773172819915,0.24822384,2037.2,2036.7,0.6004889]
[1773172820115,6.432,2037.1,2036.7,0.6004889]
[1773172820417,0.00280384,2037.4,2036.7,0.6004889]
[1773172820618,0.00280384,2037.5,2036.9,0.6004889]
[1773172820822,6.432,2037.3,2036.9,0.6004889]
[1773172821121,6.43480384,2037.3,2036.7,0.6004889]
[1773172821321,6.43480384,2037.3,2036.8,0.6004889]
[1773172821723,0.01141081,2037.2,2036.8,0.6004889]
[1773172822118,0.01141081,2037.2,2036.9,13.64310936]
[1773172822119,6.432,2037.2,2036.9,13.64310936]
[1773172822625,6.44341081,2037.2,2037.0,4.21025463]
[1773172822821,6.44341081,2037.2,2036.5,0.00512507]
[1773172822822,0.24543,2037.1,2036.5,0.00512507]
[1773172823019,6.28315,2037.1,2036.1,0.60189082]
[1773172823214,0.24548,2036.7,2035.9,0.60189082]
[1773172823422,6.432,2036.6,2035.9,0.60189082]
[1773172823617,0.24543,2037.2,2036.2,0.60647299]
[1773172823822,0.24544,2037.0,2036.2,0.60647299]
[1773172824015,0.24544,2037.0,2036.3,13.13235443]
[1773172824422,0.24544,2037.0,2036.2,0.00556797]
[1773172824623,0.24544,2037.0,2036.2,13.1379224]
[1773172825016,0.24544,2037.0,2036.2,13.74439539]
[1773172827327,0.24544,2037.0,2036.3,0.60873275]
[1773172827524,6.432,2036.9,2036.3,0.60873275]
[1773172827718,6.432,2036.9,2036.4,4.32456918]
[1773172828121,6.432,2036.9,2036.4,0.60872455]
[1773172828326,6.432,2036.9,2036.5,3.71584463]
[1773172828532,6.432,2036.9,2036.3,0.60872455]
[1773172828830,6.432,2036.9,2036.4,4.32456918]
[1773172829331,6.432,2036.9,2036.5,3.71584463]
[1773172829528,0.24544,2037.0,2036.5,4.32463225]
[1773172829728,6.432,2036.9,2036.6,3.71584463]
[1773172829927,6.432,2036.9,2036.6,0.60878762]
[1773172830727,6.432,2036.9,2036.8,3.71584463]
[1773172831127,6.30999371,2036.9,2036.8,3.71584463]
[1773172831329,0.24544,2037.0,2036.8,3.71584463]
[1773172831525,6.433,2036.9,2036.7,0.60878762]
[1773172831928,6.433,2036.9,2036.8,3.16172463]
[1773172832129,6.433,2036.9,2036.5,0.60869448]
[1773172832633,6.433,2036.9,2036.8,3.16172463]
[1773172832828,6.03300615,2036.9,2036.8,3.16172463]
[1773172834032,4.10161334,2037.3,2036.8,16.90316615]
[1773172834228,13.13333426,2037.2,2036.9,2.04053463]
[1773172834533,6.70033426,2037.1,2036.8,13.13235443]
[1773172834728,6.70033426,2037.1,2036.9,0.4416941]
[1773172834934,6.433,2037.0,2036.8,13.13235443]
[1773172835527,6.433,2037.0,2036.8,12.15001443]
[1773172835833,6.433,2037.0,2036.8,11.09370522]
[1773172836035,6.433,2037.0,2036.8,10.60157522]
[1773172836230,6.433,2037.0,2036.8,9.60740522]
[1773172836531,6.433,2037.0,2036.8,8.08798522]
[1773172836730,6.433,2037.0,2036.8,7.07523522]
[1773172837033,6.433,2037.0,2036.8,5.55340522]
[1773172837233,6.433,2037.0,2036.8,4.54574522]
[1773172837439,6.433,2037.0,2036.8,4.04610522]
[1773172837630,6.433,2036.9,2036.8,3.04242522]
[1773172837831,6.433,2036.9,2036.8,2.01038522]
[1773172838032,6.433,2036.9,2036.8,0.97834522]
[1773172838232,6.433,2036.9,2036.8,5.22e-06]
[1773172838437,6.433,2036.9,2036.7,0.60908709]
[1773172839036,0.24542,2037.2,2036.7,0.60908709]
[1773172839234,13.14146664,2037.1,2036.7,0.60908709]
[1773172839429,6.433,2037.1,2036.7,0.60908709]
[1773172839734,6.433,2037.0,2036.7,0.60908709]
[1773172843534,0.24542,2037.2,2036.7,0.60908709]
[1773172843736,13.14512432,2037.1,2036.7,0.60908709]
[1773172843932,6.433,2037.1,2036.7,0.60908709]
[1773172844133,6.95735975,2037.0,2036.3,0.60881486]
[1773172844436,0.24544,2037.0,2036.3,0.60881486]
[1773172845533,4.10161334,2037.2,2036.3,0.60881486]
[1773172845739,13.14332401,2037.1,2036.3,0.60881486]
[1773172845941,6.433,2037.1,2036.3,0.60881486]
[1773172847231,4.10161334,2037.3,2036.3,0.60881486]
[1773172847434,13.15280106,2037.2,2036.3,0.60881486]
[1773172847638,6.433,2037.2,2036.3,0.60881486]
[1773172848744,6.433,2037.3,2036.4,0.60769088]
[1773172850245,6.18992365,2037.3,2036.6,0.59134234]
[1773172850946,0.23646593,2037.2,2036.6,0.59134234]
[1773172851742,0.23830457,2037.1,2036.3,0.59134234]
[1773172852745,6.67030457,2037.0,2036.3,0.59134234]
[1773172853145,0.23830457,2036.9,2036.3,0.59134234]
[1773172853944,6.66965816,2037.0,2036.3,0.59134234]
[1773172854543,0.23765816,2036.9,2036.3,0.59134234]
[1773172855043,0.24543,2037.2,2036.3,0.59134234]
[1773172855044,0.23765816,2037.1,2036.3,0.59134234]
[1773172855243,6.432,2037.0,2036.3,0.59134234]
[1773172855444,4.91288141,2037.0,2036.3,0.59134234]
[1773172856051,5.3830591,2037.0,2036.3,0.59134234]
[1773172856240,4.91288141,2037.0,2036.3,0.59134234]
[1773172863451,0.45897823,2037.5,2036.4,0.59134234]
[1773172863661,6.432,2037.4,2036.4,0.59134234]
[1773172864148,6.432,2037.3,2036.4,0.59134234]
[1773172867156,6.43560299,2037.6,2036.6,0.59134234]
[1773172868063,0.45772056,2037.5,2036.6,0.59134234]
[1773172871461,0.00360299,2037.6,2036.8,0.59134234]
[1773172871963,0.47009981,2038.2,2037.4,0.59134234]
[1773172872159,0.47009981,2038.6,2037.4,0.59134234]
[1773172872358,0.47009981,2038.4,2037.4,0.59134234]
[1773172872759,0.47628592,2038.4,2037.4,0.59134234]
[1773172872958,6.90109981,2038.3,2037.4,0.59134234]
[1773172875164,0.48531998,2038.2,2037.4,0.59134234]
[1773172879266,0.484753,2038.0,2036.8,0.54242844]
[1773172879667,6.90010209,2037.9,2036.8,0.54242844]
[1773172881567,0.46097205,2037.8,2036.8,0.54242844]
[1773172884167,0.45810722,2038.0,2037.0,0.54242844]
[1773172884369,6.88710722,2038.0,2037.0,0.54242844]
[1773172884663,0.45810722,2037.9,2037.0,0.54242844]
[1773172887065,0.45925324,2038.3,2037.2,0.54242844]
[1773172887471,0.45925324,2038.2,2037.2,0.54242844]
[1773172890674,0.45742139,2038.0,2037.2,0.54242844]
[1773172891474,0.45740988,2037.8,2037.2,0.54242844]
[1773172891674,0.45740988,2037.7,2036.8,0.54242844]
[1773172896578,0.42324239,2037.6,2036.8,0.54242844]
[1773172899876,0.41900781,2037.5,2036.8,0.54242844]
[1773172911589,0.41900781,2037.5,2036.9,0.55495875]
[1773172913185,0.40241653,2037.4,2036.8,0.55495875]
[1773172913390,0.40241653,2037.4,2036.7,0.55495875]
[1773172914088,0.40560022,2037.3,2036.5,0.55495875]
[1773172914895,0.40560022,2037.1,2036.3,0.55495875]
[1773172918495,0.24537,2037.6,2036.3,0.55495875]
[1773172918693,0.39587395,2037.4,2036.3,0.55495875]
[1773172920498,0.39587395,2037.4,2036.4,0.55495875]
[1773172923100,0.39871947,2037.2,2036.4,0.55495875]
[1773172923302,0.24543,2037.1,2036.3,0.55495875]
[1773172923502,0.39871947,2037.0,2036.3,0.55495875]
[1773172926206,0.6397218,2037.1,2036.3,0.55495875]
[1773172926597,0.3942918,2037.3,2036.3,0.55495875]
[1773172926802,0.3942918,2037.3,2036.4,0.55495875]
[1773172927016,0.3942918,2037.5,2036.4,0.55495875]
[1773172928907,0.38736153,2037.3,2036.4,0.55495875]
[1773172929108,0.38736153,2037.1,2036.4,0.55495875]
[1773172930008,0.54751614,2036.9,2036.2,0.00556797]
[1773172930207,0.55145367,2036.9,2036.2,0.00556797]
[1773172931309,0.55145367,2036.9,2036.2,0.56052672]
[1773172931510,0.55145367,2036.9,2035.4,2.89125291]
[1773172931511,0.54751614,2036.7,2036.0,0.55495875]
[1773172931709,0.54751614,2036.6,2036.0,0.55495875]
[1773172931910,0.54751614,2036.7,2036.0,0.55495875]
[1773172932211,0.55145367,2036.9,2036.0,0.55495875]
[1773172932508,0.55145367,2036.9,2036.0,0.5603927]
[1773172935006,0.55145367,2036.9,2036.1,0.55495875]
[1773172935207,0.00393753,2036.9,2036.1,0.55495875]
[1773172938615,0.55145367,2036.9,2036.1,0.55495875]
[1773172957731,0.55145367,2036.9,2036.0,0.57124369]
[1773172959635,0.54208167,2036.7,2036.0,0.57124369]
[1773172960732,0.54208167,2036.5,2035.8,0.56580974]
[1773172961036,0.54208167,2036.3,2035.3,0.56580974]
[1773172962036,0.54208167,2036.3,2035.3,0.57071516]
[1773172974239,0.56585505,2036.2,2035.3,0.57071516]
[1773172986547,0.56585505,2036.1,2035.3,0.57071516]
[1773172994749,0.56585505,2035.9,2035.3,0.00490542]
[1773172995350,0.56585505,2035.9,2035.0,0.57753424]
[1773172996554,0.56585505,2035.9,2035.0,0.58319876]
[1773173000153,0.58169503,2036.3,2035.3,0.57276402]
[1773173000349,0.58169503,2036.3,2035.6,0.57276402]
[1773173007358,0.58169503,2036.5,2035.9,0.57276402]
[1773173009661,0.58169503,2036.5,2036.1,0.57276402]
[1773173013671,7.01469503,2036.6,2036.3,0.57276402]
[1773173014066,0.58169503,2036.5,2036.2,0.57276402]
[1773173014769,0.58169503,2036.5,2035.9,0.57276402]
[1773173017070,0.58169503,2036.5,2035.8,1.9287164]
[1773173017071,0.58169503,2036.5,2036.1,0.57276402]
[1773173017277,0.58169503,2036.6,2036.3,0.57276402]
[1773173017577,7.01469503,2036.7,2036.3,0.57276402]
[1773173017877,0.58169503,2036.6,2036.2,0.57276402]
[1773173023374,7.01469503,2036.7,2036.2,0.57276402]
[1773173023779,0.58169503,2036.6,2036.2,0.57276402]
[1773173034389,0.59665941,2036.4,2035.7,0.59777682]
[1773173035284,0.59665941,2036.4,2035.9,0.59777682]
[1773173036287,0.59665941,2036.6,2035.9,0.59777682]
[1773173036787,0.59665941,2036.6,2036.2,0.59777682]
[1773173037187,0.59665941,2036.8,2036.2,0.59777682]
[1773173040585,0.59665941,2037.1,2036.7,2.52649322]
[1773173040790,0.59665941,2037.1,2036.8,0.59777682]
[1773173041187,0.38497643,2037.3,2036.9,2.52649322]
[1773173041584,0.38497643,2037.3,2036.9,0.59777682]
[1773173041789,0.00504264,2037.3,2037.0,0.59777682]
[1773173043089,0.38539902,2037.5,2037.2,0.59777682]
[1773173043482,6.433,2037.6,2037.2,0.59777682]
[1773173043683,6.82153015,2037.6,2037.2,0.59777682]
[1773173044091,6.8275774,2037.6,2037.2,0.59777682]
[1773173044294,0.00604725,2037.6,2037.2,0.59777682]
[1773173046092,6.433,2037.8,2037.6,0.59777682]
[1773173046285,5.79949916,2037.8,2037.6,0.59777682]
[1773173046489,5.22549917,2037.8,2037.6,0.59777682]
[1773173046788,6.83425997,2038.3,2037.7,0.59777682]
[1773173046996,0.00463433,2038.3,2038.0,0.59777682]
[1773173047194,6.83425997,2038.5,2038.0,0.59777682]
[1773173047389,0.40225997,2038.6,2038.2,0.59777682]
[1773173047589,0.24519,2039.1,2038.2,0.59777682]
[1773173047590,6.83425997,2038.7,2038.2,0.59777682]
[1773173047887,0.3804876,2038.8,2038.2,0.59777682]
[1773173048289,0.3804876,2038.8,2038.1,1.9287164]
[1773173048290,0.00484653,2038.8,2038.6,0.59777682]
[1773173048487,0.00484653,2038.8,2038.6,0.60154345]
[1773173049288,0.38533413,2038.8,2038.2,0.59777682]
[1773173050194,0.35635799,2038.7,2038.0,0.59777682]
[1773173050387,0.35635799,2038.5,2038.0,0.60396201]
[1773173050789,0.35635799,2038.5,2038.0,0.00618519]
[1773173051092,0.35635799,2038.3,2038.0,0.00618519]
[1773173051294,0.35635799,2038.3,2037.9,0.59777682]
[1773173052200,0.35635799,2038.3,2037.9,0.60370218]
[1773173052892,0.29196956,2038.5,2037.9,0.60370218]
[1773173055092,6.72096956,2038.5,2037.9,0.60370218]
[1773173055296,0.28359964,2038.7,2037.9,0.60370218]
[1773173055696,6.71259964,2038.7,2037.9,0.60370218]
[1773173055893,6.429,2038.7,2037.9,0.60370218]
[1773173056098,0.27212549,2038.6,2037.9,0.60370218]
[1773173056801,0.27697202,2038.8,2037.9,0.60370218]
[1773173056997,6.429,2038.6,2037.9,0.60370218]
[1773173057201,6.70112549,2038.6,2037.9,0.60370218]
[1773173057603,6.429,2038.6,2037.9,0.60370218]
[1773173058402,0.26825572,2038.5,2037.9,0.60370218]
[1773173058802,0.26825572,2038.7,2037.9,0.60370218]
[1773173058998,6.428,2038.6,2037.9,0.60370218]
[1773173059204,0.26825572,2038.5,2037.9,0.60370218]
[1773173061004,0.2647477,2038.7,2037.9,0.60370218]
[1773173061210,6.6927477,2038.7,2037.9,0.60370218]
[1773173061703,0.00484653,2038.8,2037.9,0.60370218]
[1773173061904,0.26885507,2038.8,2038.0,0.58163153]
[1773173066514,0.26672077,2038.7,2038.0,0.58163153]
[1773173067016,6.69372077,2038.7,2038.0,0.58163153]
[1773173067808,0.26672077,2038.7,2038.0,0.58163153]
[1773173068013,6.69548893,2038.8,2038.0,0.58163153]
[1773173070011,6.43184653,2038.8,2038.0,0.58163153]
[1773173071016,0.00484653,2038.8,2038.0,0.58163153]
[1773173071820,0.22522349,2038.8,2038.0,0.58163153]
[1773173073621,0.00484653,2038.8,2038.0,0.58163153]
[1773173075021,0.23024927,2039.4,2038.2,0.58163153]
[1773173075220,6.427,2039.6,2038.4,0.58163153]
[1773173075421,0.23024927,2039.5,2038.4,0.58163153]
[1773173076125,0.23606259,2039.5,2038.4,0.58163153]
[1773173076327,0.23606259,2039.5,2038.6,0.58163153]
[1773173077226,0.23606259,2039.5,2038.4,0.58163153]
[1773173077431,0.23275179,2039.3,2038.1,0.58163153]